Cogmind - Beta 9.4 @@@ ROGUE MODE // 2020.02.26 @ 03:45:24 Player: Xeram Result: Destroyed by H-88 Terminator with KE Penetrator Performance ------------- Evolutions (9) 4500 Regions Visited (11) 2200 Robots Destroyed (22) 110 Value Destroyed (644) 644 Prototype IDs (6) 120 Alien Tech Used (0) 0 Bonus (824) 824 TOTAL SCORE: 8398 Bonus ------- Pacifist 200 Follower Combat Kills 647 Friendly Fire -23 Cogmind --------- Core Integrity 0/1600 Matter 203/300 Energy 34/100 System Corruption 12% Temperature Cool (4) Movement Core (100) Ox1 Location -1/Access Parts ------- > --- POWER (2) -------- (None) > --- PROPULSION (3) --- (None) > --- UTILITY (18) ----- Hacking Suite Improved Hacking Suite > --- WEAPON (2) ------- Enhanced Quantum Rifle > --- INVENTORY (4) ---- Light Antimatter Reactor Compact HERF Cannon Peak State ------------ > --- POWER ------------ Micro Fission Core Light Antimatter Reactor > --- PROPULSION ------- Cooled VTOL Module Field Propulsion Drive Field Propulsion Drive > --- UTILITY ---------- Power Amplifier Advanced Weight Redist. System Advanced Weight Redist. System Long-range Sensor Array Advanced Signal Interpreter Reaction Control System Improved Cloaking Device Hacking Suite Hacking Suite Hacking Suite Improved Hacking Suite Advanced Hacking Suite > --- WEAPON ----------- Long-range Missile Launcher Ionic Axe > --- INVENTORY -------- Micro Fission Core Improved Maneuvering Thrusters Powered Armor Compact HERF Cannon [Rating: 96] Favorites ----------- Power Light Ion Engine Engine Light Ion Engine Power Core Fission Core Reactor Light Antimatter Reactor Propulsion Xenon Bombardment Thruster Leg Aluminum Leg Wheel Wheel Flight Unit Xenon Bombardment Thruster Utility Hacking Suite Device Advanced Weight Redist. System Storage Medium Storage Unit Processor Advanced Signal Interpreter Hackware Hacking Suite Protection Improved Light Armor Plating Weapon Missile Launcher Energy Gun Enhanced Quantum Rifle Energy Cannon Compact HERF Cannon Ballistic Gun Light Assault Rifle Launcher Missile Launcher Slashing Weapon Great Axe Build | -11 -10 -9 -8 -7 -6 -5 -4 -4 -3 -2 -1 ------- Run | Scr Mat Mat Mat Fac Fac Fac Fac Ext Res Res Acc Slots Evolved 18 | . . 2 2 2 2 2 2 . 2 2 2 Power 1 | . . . . 1 . . . . . . . Propulsion 1 | . . . 1 . . . . . . . . Utility 16 | . . 2 1 1 2 2 2 . 2 2 2 Weapon . | . . . . . . . . . . . . Parts Attached 80 | 6 2 5 17 9 10 4 1 9 5 3 9 Power 18 | 1 . 1 1 2 4 . . 4 2 1 2 Engine 6 | 1 . 1 1 2 1 . . . . . . Core 9 | . . . . . 3 . . 3 1 1 1 Reactor 3 | . . . . . . . . 1 1 . 1 Propulsion 14 | 2 . . 4 4 . 1 . 1 . . 2 Treads . | . . . . . . . . . . . . Leg 2 | 2 . . . . . . . . . . . Wheel 1 | . . . . 1 . . . . . . . Hover . | . . . . . . . . . . . . Flight 11 | . . . 4 3 . 1 . 1 . . 2 Utility 32 | 1 2 4 8 2 5 3 1 2 1 2 1 Device 19 | . . 2 4 1 5 1 1 1 1 2 1 Storage 4 | 1 1 1 1 . . . . . . . . Processor 3 | . 1 1 1 . . . . . . . . Hackware 5 | . . . 1 1 . 2 . 1 . . . Protection 1 | . . . 1 . . . . . . . . Artifact . | . . . . . . . . . . . . Weapon 16 | 2 . . 4 1 1 . . 2 2 . 4 Energy Gun 2 | . . . . . . . . . . . 2 Energy Cannon 1 | . . . . . . . . . . . 1 Ballistic Gun 2 | 2 . . . . . . . . . . . Ballistic Cannon . | . . . . . . . . . . . . Launcher 7 | . . . 4 . 1 . . 1 . . 1 Special Weapon . | . . . . . . . . . . . . Impact Weapon . | . . . . . . . . . . . . Slashing Weapon 4 | . . . . 1 . . . 1 2 . . Piercing Weapon . | . . . . . . . . . . . . Special Melee Weapon . | . . . . . . . . . . . . Unidentified Prototypes 4 | . . . . 2 . . . . 2 . . Parts Lost 27 | . . . 3 2 . . . 1 . 11 10 Power 3 | . . . . 1 . . . . . 1 1 Propulsion 8 | . . . 2 1 . . . . . 2 3 Utility 13 | . . . 1 . . . . . . 8 4 Weapon 3 | . . . . . . . . 1 . . 2 Highest Loss Streak 10 | . . . 2 2 . . . 1 . 9 10 Average Slot Usage (%) 84 | . 99 97 79 82 95 98 89 89 85 66 26 Engine 5 | . 14 11 8 7 2 . . . . . . Core 3 | . . . . . 10 11 10 8 3 3 1 Leg 6 | . 28 22 6 . . . . . . . . Flight 12 | . . . 15 19 20 17 15 15 14 10 3 Device 18 | . . 8 18 23 28 29 26 26 24 18 1 Storage 5 | . 14 21 8 . . . . . . . . Processor 7 | . 13 11 9 7 6 5 5 5 4 4 2 Hackware 11 | . . . 1 13 13 21 21 21 23 19 13 Ballistic Gun 6 | . 28 22 6 . . . . . . . . Launcher 3 | . . . 3 7 6 5 5 5 4 1 . Slashing Weapon 2 | . . . . 2 6 5 5 5 4 4 2 Naked Turns . | . . . . . . . . . . . . Heaviest Build 38 | 10 22 35 38 23 32 32 32 35 36 36 9 Greatest Support 41 | 20 20 20 30 29 36 38 38 41 41 41 23 Greatest Overweight (x) 5 | 2 1 1 5 4 1 . . 1 . 2 2 Average Overweight (x) . | . . 1 . . . . . . . . . Largest Inventory Capacity 14 | 6 10 14 14 4 4 4 4 4 4 4 4 Average Capacity 6 | 5 7 13 8 4 4 4 4 4 4 4 4 Most Carried 14 | 2 6 11 14 4 4 4 4 4 4 4 4 Average Carried 5 | 1 4 9 7 3 3 3 3 3 4 3 3 Final Capacity 14 | 6 10 14 4 4 4 4 4 4 4 4 4 Final Carried 11 | 2 6 11 4 4 4 4 4 4 4 4 2 Class Distribution -------------------- 47% | Hacker-Sprinter 38% | Mutant 13% | Hacker-Mutant Dominant Class ---------------- Mutant | -10/Materials Mutant | -9/Materials Mutant | -8/Materials Hacker-Sprinter | -7/Factory Hacker-Sprinter | -6/Factory Hacker-Sprinter | -5/Factory Hacker-Sprinter | -4/Factory Hacker-Sprinter | -4/Extension Hacker-Sprinter | -3/Research Hacker-Sprinter | -2/Research Hacker-Mutant | -1/Access Resources | -11 -10 -9 -8 -7 -6 -5 -4 -4 -3 -2 -1 ----------- Run | Scr Mat Mat Mat Fac Fac Fac Fac Ext Res Res Acc Matter Collected 1131 | 176 86 . 292 247 . . . 311 . . 19 Remotely . | . . . . . . . . . . . . Salvage Created 499 | . . 43 117 242 46 . . 32 . . 19 Parts 43 | . . 3 10 19 3 . . 5 . . 3 Haulers Intercepted . | . . . . . . . . . . . . Recyclers Shooed 1 | . . . . . . . . 1 . . . Parts Field Recycled . | . . . . . . . . . . . . Retrieved Matter . | . . . . . . . . . . . . Parts Self-Destructed . | . . . . . . . . . . . . Prevented . | . . . . . . . . . . . . Kills | -11 -10 -9 -8 -7 -6 -5 -4 -4 -3 -2 -1 ------- Run | Scr Mat Mat Mat Fac Fac Fac Fac Ext Res Res Acc Combat Hostiles Destroyed 17 | . . 1 6 4 1 . . 4 . . 1 Melee 2 | . . . . 1 1 . . . . . . Guns 2 | . . 1 1 . . . . . . . . AOE 13 | . . . 5 3 . . . 4 . . 1 Classes Destroyed 8 | . . 1 3 3 1 . . . . . . Builder 3 | . . . . 3 . . . . . . . Recycler 1 | . . . . 1 . . . . . . . Mechanic 1 | . . . . 1 . . . . . . . Swarmer 11 | . . . 3 3 . . . 4 . . 1 Grunt 3 | . . 1 1 1 . . . . . . . Sentry 1 | . . . 1 . . . . . . . . Hunter 1 | . . . 1 . . . . . . . . Programmer 1 | . . . . . 1 . . . . . . Best Kill Streak 4 | . . 1 4 4 1 . . 4 . . 1 Combat Bots Only 4 | . . 1 4 4 1 . . 4 . . 1 Max Kills in Single Turn 2 | . . 1 2 2 1 . . 2 . . 1 Gunslinging . | . . . . . . . . . . . . Exploded 2 | . . . 2 2 . . . 2 . . 1 Melee 1 | . . . . 1 1 . . . . . . Uniques/NPCs Destroyed . | . . . . . . . . . . . . Combat | -11 -10 -9 -8 -7 -6 -5 -4 -4 -3 -2 -1 -------- Run | Scr Mat Mat Mat Fac Fac Fac Fac Ext Res Res Acc Damage Taken 3975 | . . 79 643 238 35 . . 102 . 722 2156 Core 1990 | . . . 77 106 . . . 15 . 185 1607 Absorbed by Shields 12 | . . . . . 12 . . . . . . Core Remaining (%) 95 | 100 100 100 86 84 100 100 . 98 100 87 . Volleys Fired 43 | . . 4 24 4 . . . 8 . . 3 Largest 2 | . . 2 2 1 . . . 1 . . 1 Hottest 94 | . . 40 40 36 . . . 43 . . 94 Shots Fired 59 | . . 8 36 4 . . . 8 . . 3 Gun 34 | . . 8 24 . . . . . . . 2 Cannon . | . . . . . . . . . . . . Launcher 25 | . . . 12 4 . . . 8 . . 1 Special . | . . . . . . . . . . . . Kinetic 32 | . . 8 24 . . . . . . . . Thermal 2 | . . . . . . . . . . . 2 Explosive 25 | . . . 12 4 . . . 8 . . 1 Electromagnetic . | . . . . . . . . . . . . Robot Hit Streak 6 | . . 2 6 3 . . . 1 . . 3 Robot Miss Streak 3 | . . 2 3 1 . . . 1 . . . Penetration Max . | . . . . . . . . . . . . Secondary Targets . | . . . . . . . . . . . . Shots Hit Robots 37 | . . 3 19 10 2 . . 1 . . 2 Core Hits 48 | . . 2 16 16 1 . . 10 . . 3 Critical Hits . | . . . . . . . . . . . . Critical Kills . | . . . . . . . . . . . . Critical Parts Destroyed . | . . . . . . . . . . . . Melee Attacks 138 | . . . . 8 29 7 . 11 28 29 26 Impact . | . . . . . . . . . . . . Slashing 138 | . . . . 8 29 7 . 11 28 29 26 Piercing . | . . . . . . . . . . . . Sneak Attacks 5 | . . . . 5 . . . . . . . Combat Hostiles . | . . . . . . . . . . . . Follow-up Attacks . | . . . . . . . . . . . . Damage Inflicted 2376 | . . 39 522 989 87 . . 639 . . 100 Guns 204 | . . 39 104 . . . . . . . 61 Cannons . | . . . . . . . . . . . . Explosions 1359 | . . . 418 264 . . . 639 . . 38 Melee 812 | . . . . 725 87 . . . . . . Ramming 1 | . . . . . . . . . . . 1 Kinetic 143 | . . 39 104 . . . . . . . . Thermal 61 | . . . . . . . . . . . 61 Explosive 1359 | . . . 418 264 . . . 639 . . 38 Electromagnetic . | . . . . . . . . . . . . Impact . | . . . . . . . . . . . . Slashing 812 | . . . . 725 87 . . . . . . Piercing . | . . . . . . . . . . . . Highest Corruption 12 | . . . . . . . . . . 9 12 Average Corruption 7 | . . . . . . . . . . 6 8 Corruption Purged . | . . . . . . . . . . . . Effects 3 | . . . . . . . . . . 1 2 Message Errors 2 | . . . . . . . . . . 1 1 Data Loss (major) 1 | . . . . . . . . . . . 1 Overload Shots . | . . . . . . . . . . . . Overflow Damage 180 | . . . 11 56 5 . . 108 . . . Projectiles . | . . . . . . . . . . . . Explosions 119 | . . . 11 . . . . 108 . . . Melee 61 | . . . . 56 5 . . . . . . Knockbacks . | . . . . . . . . . . . . Impact . | . . . . . . . . . . . . Kinetic . | . . . . . . . . . . . . Secondary . | . . . . . . . . . . . . Self-Inflicted Damage 260 | . . . 52 99 . . . 45 . . 64 Shots 7 | . . . 3 2 . . . 1 . . 1 Rammed 1 | . . . . . . . . . . . 1 Targets Rammed 1 | . . . . . . . . . . . 1 Kicked . | . . . . . . . . . . . . Crushed . | . . . . . . . . . . . . Highest Temperature 7 | . . 4 7 . . . . . . . 4 Average Temperature 4 | . . 3 4 . . . . . . . 4 Received Heat Transfer 213 | . . 42 81 18 . . . . . 45 27 Siege Activations . | . . . . . . . . . . . . Robots Corrupted . | . . . . . . . . . . . . Combat Hostiles . | . . . . . . . . . . . . Parts Fried . | . . . . . . . . . . . . Impact Corruptions . | . . . . . . . . . . . . Robots Melted . | . . . . . . . . . . . . Combat Hostiles . | . . . . . . . . . . . . Parts Melted . | . . . . . . . . . . . . Heat Transferred 74 | . . . . . . . . . . . 74 Parts Sabotaged . | . . . . . . . . . . . . Parts Stolen . | . . . . . . . . . . . . Parts Stripped . | . . . . . . . . . . . . Power Chain Reactions . | . . . . . . . . . . . . Missiles Intercepted . | . . . . . . . . . . . . Alert | -11 -10 -9 -8 -7 -6 -5 -4 -4 -3 -2 -1 ------- Run | Scr Mat Mat Mat Fac Fac Fac Fac Ext Res Res Acc Peak Influence 447 | . 35 32 283 135 167 57 29 447 308 228 272 Average Influence 98 | . 27 18 91 73 80 49 28 214 264 177 166 Maximum Alert Level 2 | . . . 1 . . . . 2 1 1 1 Low Security (%) 83 | 100 100 100 85 100 100 100 100 41 17 77 46 Level 1 14 | . . . 14 . . . . 44 82 22 53 Level 2 1 | . . . . . . . . 13 . . . Level 3 . | . . . . . . . . . . . . Level 4 . | . . . . . . . . . . . . Level 5 . | . . . . . . . . . . . . High Security . | . . . . . . . . . . . . Max Security . | . . . . . . . . . . . . Squads Dispatched 11 | . . 1 5 . 1 . . 2 . 1 1 Investigation 2 | . . . 1 . . . . 1 . . . Extermination 2 | . . . . . 1 . . . . 1 . Reinforcement 4 | . . 1 1 . . . . 1 . . 1 Assault . | . . . . . . . . . . . . Garrison 3 | . . . 3 . . . . . . . . Intercept . | . . . . . . . . . . . . Construction Impeded . | . . . . . . . . . . . . Haulers Reinforced . | . . . . . . . . . . . . Stealth | -11 -10 -9 -8 -7 -6 -5 -4 -4 -3 -2 -1 --------- Run | Scr Mat Mat Mat Fac Fac Fac Fac Ext Res Res Acc Distress Signals 11 | . 1 . 2 . 1 . . 2 . 2 3 Communications Jammed . | . . . . . . . . . . . . Distress Signals . | . . . . . . . . . . . . Times Spotted 104 | . 4 1 30 9 8 1 . 10 1 21 19 Peak Tracking Total 14 | . 4 1 14 4 6 1 . 6 2 13 9 Tactical Retreats 21 | . . . 7 1 2 . . 1 1 7 2 Traps | -11 -10 -9 -8 -7 -6 -5 -4 -4 -3 -2 -1 ------- Run | Scr Mat Mat Mat Fac Fac Fac Fac Ext Res Res Acc Traps Triggered 8 | . . . . . 3 . . 2 . 3 . Indirectly . | . . . . . . . . . . . . Trap Hack Attempts . | . . . . . . . . . . . . Triggered . | . . . . . . . . . . . . Disarmed . | . . . . . . . . . . . . Reprogrammed 4 | . . . . 4 . . . . . . . Reused 1 | . . . . 1 . . . . . . . Traps Extracted . | . . . . . . . . . . . . Installed . | . . . . . . . . . . . . Triggered 1 | . . . . 1 . . . . . . . Machines | -11 -10 -9 -8 -7 -6 -5 -4 -4 -3 -2 -1 ---------- Run | Scr Mat Mat Mat Fac Fac Fac Fac Ext Res Res Acc Machines Disabled 6 | . . . 3 . . . . 2 . . 1 Max in Single Turn 2 | . . . 2 . . . . 1 . . 1 Machines Sabotaged . | . . . . . . . . . . . . Garrisons Compromised . | . . . . . . . . . . . . Overloaded Fab Kills . | . . . . . . . . . . . . Fab Network Shutdowns . | . . . . . . . . . . . . Hacking | -11 -10 -9 -8 -7 -6 -5 -4 -4 -3 -2 -1 --------- Run | Scr Mat Mat Mat Fac Fac Fac Fac Ext Res Res Acc Machines Accessed 31 | . 2 2 2 6 2 2 2 9 1 2 1 Terminals 27 | . 2 1 2 5 2 1 1 9 1 2 1 Fabricators 2 | . . . . 1 . 1 . . . . . Repair Stations . | . . . . . . . . . . . . Recycling Units . | . . . . . . . . . . . . Scanalyzers 2 | . . 1 . . . . 1 . . . . Garrison Access . | . . . . . . . . . . . . Total Hacks 74 | . 6 8 5 11 4 11 3 20 2 2 2 Successful 49 | . 2 6 1 7 4 8 3 13 2 1 2 Failed 24 | . 4 2 4 4 . 3 . 6 . 1 . Catastrophic 3 | . . . 2 1 . . . . . . . Database Lockouts 2 | . . . . . . . . 2 . . . Manual 30 | . 6 . 5 2 . 7 . 6 1 2 1 Terminals 63 | . 6 3 5 9 4 9 1 20 2 2 2 Fabricators 4 | . . . . 2 . 2 . . . . . Repair Stations . | . . . . . . . . . . . . Recycling Units . | . . . . . . . . . . . . Scanalyzers 7 | . . 5 . . . . 2 . . . . Garrison Access . | . . . . . . . . . . . . Terminal Hacks 34 | . . 1 1 4 4 5 1 13 2 1 2 Record 5 | . . . . . . . . 4 . . 1 Part Schematic 5 | . . . 1 . . 2 . 2 . . . Robot Schematic 1 | . . . . 1 . . . . . . . Prototype ID Bank 1 | . . . . . . 1 . . . . . Open Door 6 | . . . . . . . 1 5 . . . Level Access Points 5 | . . . . . 1 1 . . 1 1 1 Terminal Index 1 | . . 1 . . . . . . . . . Alert Level 3 | . . . . . 2 . . . 1 . . Unreport Threat 2 | . . . . 1 . . . 1 . . . Reprogram Traps 1 | . . . . 1 . . . . . . . Registered Components 3 | . . . . . 1 1 . 1 . . . Registered Prototypes 1 | . . . . 1 . . . . . . . Fabricator Hacks 4 | . . . . 2 . 2 . . . . . Load Schematic 2 | . . . . 1 . 1 . . . . . Build 2 | . . . . 1 . 1 . . . . . Repair Station Hacks . | . . . . . . . . . . . . Recycling Unit Hacks . | . . . . . . . . . . . . Scanalyzer 7 | . . 5 . . . . 2 . . . . Insert Component 3 | . . 2 . . . . 1 . . . . Analyze 4 | . . 3 . . . . 1 . . . . Garrison Access Hacks . | . . . . . . . . . . . . Unauthorized Hacks 9 | . 5 . . 2 . 2 . . . . . Terminals 4 | . 2 . . 1 . 1 . . . . . Track 1 | . 1 . . . . . . . . . . Botnet 3 | . 1 . . 1 . 1 . . . . . Fabricators . | . . . . . . . . . . . . Repair Stations . | . . . . . . . . . . . . Recycling Units . | . . . . . . . . . . . . Scanalyzers . | . . . . . . . . . . . . Garrison Access . | . . . . . . . . . . . . Data Cores Recovered . | . . . . . . . . . . . . Used . | . . . . . . . . . . . . Hacking Detections 22 | . 2 2 2 4 2 2 . 5 1 1 1 Full Trace Events 1 | . . . 1 . . . . . . . . Feedback Events . | . . . . . . . . . . . . Feedback Blocked . | . . . . . . . . . . . . Robot Schematics Acquired 1 | . . . . 1 . . . . . . . Robots Built . | . . . . . . . . . . . . Matter . | . . . . . . . . . . . . Time . | . . . . . . . . . . . . Total Robot Build Rating . | . . . . . . . . . . . . Part Schematics Acquired 8 | . . 2 1 . . 2 1 2 . . . Parts Built 3 | . . . . 1 . 2 . . . . . Matter 336 | . . . . 146 . 190 . . . . . Time 120 | . . . . 73 . 47 . . . . . Total Part Build Rating 13 | . . . . 3 . 10 . . . . . Parts Repaired . | . . . . . . . . . . . . Time . | . . . . . . . . . . . . Parts Recycled . | . . . . . . . . . . . . Recycled Matter . | . . . . . . . . . . . . Retrieved Matter . | . . . . . . . . . . . . Retrieved Components . | . . . . . . . . . . . . Parts Scanalyzed 3 | . . 2 . . . . 1 . . . . Part Schematics Acquired 3 | . . 2 . . . . 1 . . . . Parts Damaged . | . . . . . . . . . . . . Bothacking | -11 -10 -9 -8 -7 -6 -5 -4 -4 -3 -2 -1 ------------ Run | Scr Mat Mat Mat Fac Fac Fac Fac Ext Res Res Acc Used RIF Installer . | . . . . . . . . . . . . Robots Hacked . | . . . . . . . . . . . . Non-combat . | . . . . . . . . . . . . Combat . | . . . . . . . . . . . . Robot Hacks Applied . | . . . . . . . . . . . . Relay Couplers Released . | . . . . . . . . . . . . Robots Rewired 7 | . . . . . . . . 7 . . . Allies Hacked . | . . . . . . . . . . . . Hacks Repelled . | . . . . . . . . . . . . Allies | -11 -10 -9 -8 -7 -6 -5 -4 -4 -3 -2 -1 -------- Run | Scr Mat Mat Mat Fac Fac Fac Fac Ext Res Res Acc Total Allies 13 | . . . . . . . . 13 . . . Largest Group 8 | . . . . . . . . 8 7 . . Highest-Rated Group 457 | . . . . . . . . 457 413 . . Highest-Rated Ally 156 | . . . . . . . . 156 150 . . Total Orders . | . . . . . . . . . . . . Ally Attacks 91 | . . . . . . . . 57 34 . . Total Damage 2794 | . . . . . . . . 2068 726 . . Kills 20 | . . . . . . . . 13 7 . . Allies Corrupted . | . . . . . . . . . . . . Allies Melted . | . . . . . . . . . . . . Intel | -11 -10 -9 -8 -7 -6 -5 -4 -4 -3 -2 -1 ------- Run | Scr Mat Mat Mat Fac Fac Fac Fac Ext Res Res Acc Robot Analysis Total . | . . . . . . . . . . . . Derelict Logs Recovered . | . . . . . . . . . . . . Drone Launches . | . . . . . . . . . . . . Drone Recoveries . | . . . . . . . . . . . . Exploration | -11 -10 -9 -8 -7 -6 -5 -4 -4 -3 -2 -1 ------------- Run | Scr Mat Mat Mat Fac Fac Fac Fac Ext Res Res Acc Turns Passed 4114 | 51 269 653 511 645 492 261 53 460 174 313 232 Spaces Moved 4386 | 31 201 236 489 643 799 362 163 492 221 403 346 Core 110 | 6 . . . 1 . . . 2 . . 101 Treads . | . . . . . . . . . . . . Legs 534 | 25 201 236 72 . . . . . . . . Wheels . | . . . . . . . . . . . . Hover . | . . . . . . . . . . . . Flight 3742 | . . . 417 642 799 362 163 490 221 403 245 Fastest Speed 30 | 50 120 150 34 30 30 30 30 30 32 32 34 Average Speed 47 | 114 129 150 55 44 30 30 30 31 32 34 39 Slowest Speed 460 | 150 150 150 460 250 101 30 30 100 32 165 150 Overloaded Moves . | . . . . . . . . . . . . Propulsion Burnouts . | . . . . . . . . . . . . Robots Hopped 16 | . . . 4 . 1 2 . 4 . 4 1 Cave-ins Triggered 3 | . . . . . . . . . . 2 1 Exploration Rate (%) 22 | 3 33 26 42 23 24 12 4 60 7 16 14 Regions Visited 11 Branch Regions 1 Pre-discovered Areas . | . . . . . . . . . . . . Known Exits Taken 9 | . . 1 1 1 1 1 1 1 1 1 . Unknown Exits Taken 2 | 1 1 . . . . . . . . . . Scrap Searched . | . . . . . . . . . . . . Spaces Dug 121 | . . . . . 27 7 . 8 28 29 22 Terrain Destroyed 345 | . . . 68 38 27 7 . 126 28 29 22 Melee 121 | . . . . . 27 7 . 8 28 29 22 Projectile . | . . . . . . . . . . . . AOE 224 | . . . 68 38 . . . 118 . . . Actions | -11 -10 -9 -8 -7 -6 -5 -4 -4 -3 -2 -1 --------- Run | Scr Mat Mat Mat Fac Fac Fac Fac Ext Res Res Acc Total 6097 | 43 210 527 694 983 998 499 167 767 281 529 399 Wait 1268 | 5 5 276 144 313 115 124 . 181 22 75 8 Move 4342 | 30 200 235 480 642 796 358 162 484 220 392 343 Hop 14 | . . . 4 . 1 1 . 3 . 4 1 Pick Up 36 | 2 3 5 11 2 4 1 2 2 1 1 2 Fast Attach 51 | 6 1 3 8 8 6 3 . 4 5 3 4 Attach 17 | . . 1 6 . 2 . 1 2 . . 5 Detach 17 | . . 2 5 . 2 1 . 2 . 2 3 Swap 12 | . 1 1 3 1 2 1 . 3 . . . Drop 43 | . . . 9 5 7 3 2 7 5 3 2 Fire 43 | . . 4 24 4 . . . 8 . . 3 Melee 138 | . . . . 8 29 7 . 11 28 29 26 Ram 1 | . . . . . . . . . . . 1 Kick . | . . . . . . . . . . . . Crush . | . . . . . . . . . . . . Escape Stasis 83 | . . . . . 34 . . 28 . 20 1 Rewire 32 | . . . . . . . . 32 . . . Trap . | . . . . . . . . . . . . Miscellaneous . | . . . . . . . . . . . . Route ------- -11/Scrapyard -10/Materials -9/Materials (discovered 3 exits: *Mat / *Min / [Sto]) -8/Materials -7/Factory -6/Factory (discovered 4 exits: *Fac x4) -5/Factory (discovered 4 exits: *Fac x4) -4/Factory -4/Extension (discovered 2 exits: *Res / *Cet) -3/Research (discovered 3 exits: *Res x3) -2/Research (discovered 3 exits: *Acc x3) -1/Access (discovered 1 exit: Sur) History --------- Turn | Location | Event 17 | -11/Scrapyard | Discovered new exit (range 16) 52 | -11/Scrapyard | Entered Materials 220 | -10/Materials | Discovered new exit (range 7) 308 | -10/Materials | Build established: Mutant 321 | -10/Materials | Entered another Materials area 321 | -9/Materials | Evolved 2 slots: Utility x2 716 | -9/Materials | Discovered new exit (range 16) 838 | -9/Materials | Discovered new exit (range 6) 843 | -9/Materials | Identified exit to Mines 938 | -9/Materials | Discovered new exit (range 16) 973 | -9/Materials | Identified exit to Materials 974 | -9/Materials | Entered another Materials area 974 | -8/Materials | Evolved 2 slots: Propulsion x1, Utility x1 1062 | -8/Materials | Garrison activated, responded to threat 1484 | -8/Materials | Discovered new exit (range 4) 1485 | -8/Materials | Identified exit to Factory 1485 | -8/Materials | Entered Factory 1485 | -7/Factory | Evolved 2 slots: Power x1, Utility x1 1579 | -7/Factory | Fabricated Hacking Suite (x1) 2126 | -7/Factory | Discovered new exit (range 15) 2129 | -7/Factory | Identified exit to Factory 2130 | -7/Factory | Entered another Factory area 2130 | -6/Factory | Evolved 2 slots: Utility x2 2455 | -6/Factory | Build established: Hacker-Sprinter 2597 | -6/Factory | Identified exit to Factory 2622 | -6/Factory | Entered another Factory area 2622 | -5/Factory | Evolved 2 slots: Utility x2 2650 | -5/Factory | Identified exit to Factory 2725 | -5/Factory | Fabricated Power Amplifier (x2) 2762 | -5/Factory | Found Powered Armor 2883 | -5/Factory | Entered another Factory area 2883 | -4/Factory | Evolved 2 slots: Utility x2 2923 | -4/Factory | Discovered new exit (range 6) 2924 | -4/Factory | Identified exit to Extension 2930 | -4/Factory | Spotted B-86 Titan 2936 | -4/Factory | Entered Extension 2983 | -4/Extension | Rescued a captive Derelict 2984 | -4/Extension | Rescued a captive Derelict 3003 | -4/Extension | Rescued a captive Derelict 3046 | -4/Extension | Rescued a captive Derelict 3098 | -4/Extension | Rescued A7 3129 | -4/Extension | Central database locked down 3139 | -4/Extension | Rescued a captive Derelict 3347 | -4/Extension | Discovered new exit (range 10) 3348 | -4/Extension | Discovered new exit (range 6) 3354 | -4/Extension | Identified exit to Research 3354 | -4/Extension | Identified exit to Cetus 3396 | -4/Extension | Entered Research 3396 | -3/Research | Accompanied by 7 allies 3396 | -3/Research | Evolved 2 slots: Utility x2 3420 | -3/Research | Identified exit to Research 3570 | -3/Research | Entered another Research area 3570 | -2/Research | Evolved 2 slots: Utility x2 3713 | -2/Research | Spotted B-90 Cyclops 3825 | -2/Research | Crushed by falling debris 3827 | -2/Research | Crushed by falling debris 3840 | -2/Research | Identified exit to Access 3858 | -2/Research | Lost 9 parts (1p2n6u) 3881 | -2/Research | Spotted B-90 Cyclops 3883 | -2/Research | Entered Access 3883 | -1/Access | Evolved 2 slots: Utility x2 3971 | -1/Access | Identified exit to Surface 3998 | -1/Access | Crushed by falling debris 4036 | -1/Access | Spotted B-99 Colossus 4064 | -1/Access | Spotted B-99 Colossus 4066 | -1/Access | Core integrity fell below 50% 4068 | -1/Access | System corruption reached 10% 4077 | -1/Access | Build established: Hacker-Mutant 4090 | -1/Access | Lost 10 parts (1p3n4u2w) 4104 | -1/Access | Core integrity fell below 20% 4115 | -1/Access | Destroyed by H-88 Terminator with KE Penetrator Last Messages --------------- 04065_ Penetrated by Slug. 04071_ Knocked back. 04071_ Penetrated by Slug. 04071_ Slug penetrates Wall. 04071_ Penetrated by Slug. 04071_ W-44 Eye sends out distress signal. 04073_ EV7XXHV6,YBK/4ENT|G3,AB&AKG/H< 04089_ System corrupted: Substantial component data lost. 04093_ K-01 Serf cleans the Spectral Interrupter. 04093_ Acquired Enh. Quantum Rifle. 04095_ K-01 Serf cleans the Spectral Interrupter. 04098_ Penetrated by Slug. 04098_ K-01 Serf cleans the Spectral Interrupter. 04100_ Penetrated by Slug. 04100_ Slug penetrates Wall. 04104_ Penetrated by Slug. 04111_ Door malfunctions. 04114_ Penetrated by Slug. 04115_ Slug penetrates Wall. 04115_ Penetrated by Slug. Map ----- +----------------------------------------------------+ | ?????????????????????????????????????????????##### | | ?????????????????????????????????????????????" | | ?????????????????????????????????????????????" | | ?????????????????????????????????????????????" | | ?????????????????????????????????????????????" | | ?????????????????????????????????????????????" | | ?????????????????????????????????????